fUST/lending_fUST_20250611
["ID","MTS","AMOUNT","RATE_DAILY","PERIOD"]
[365306767,1749591036186,-410.0,0.00021369,4]
[365306768,1749591036196,-460.0,0.00021369,4]
[365306769,1749591036207,-380.0,0.00021369,4]
[365306770,1749591036217,-460.0,0.00021369,4]
[365306771,1749591036227,-205.06760226,0.00021369,4]
[365306772,1749591036236,-460.0,0.00021369,4]
[365306773,1749591036245,-460.0,0.00021369,4]
[365306774,1749591036255,-460.0,0.00021369,4]
[365306775,1749591036264,-460.0,0.00021369,4]
[365306776,1749591036274,-460.0,0.00021369,4]
[365306777,1749591036283,-274.57894625,0.00021369,4]
[365306778,1749591036293,-460.0,0.00021369,4]
[365306779,1749591036303,-460.0,0.00021369,4]
[365306780,1749591036312,-400.0,0.00021369,4]
[365306781,1749591036321,-1448.93,0.00021369,4]
[365306782,1749591036331,-460.0,0.00021369,4]
[365306783,1749591036345,-460.0,0.00021369,4]
[365306784,1749591036355,-220.0,0.00021369,4]
[365306785,1749591036364,-465.91,0.00021369,4]
[365306786,1749591036374,-460.0,0.00021369,4]
[365306787,1749591036383,-1621.86,0.00021369,4]
[365306788,1749591036393,-198.03,0.00021369,4]
[365306789,1749591036402,-460.0,0.00021369,4]
[365306790,1749591036412,-460.0,0.00021369,4]
[365306791,1749591036421,-460.0,0.00021369,4]
[365306792,1749591036431,-460.0,0.00021369,4]
[365306793,1749591036440,-460.0,0.00021369,4]
[365306794,1749591036450,-295.8869076,0.00021369,4]
[365306795,1749591036459,-284.39,0.00021369,4]
[365306796,1749591036469,-460.0,0.00021369,2]
[365306797,1749591036478,-460.0,0.00021369,4]
[365306798,1749591036488,-440.0,0.00021369,4]
[365306799,1749591036497,-460.0,0.00021369,4]
[365306800,1749591036507,-460.0,0.00021369,4]
[365306801,1749591036517,-460.0,0.00021369,4]
[365306802,1749591036527,-460.0,0.00021369,4]
[365306803,1749591036537,-460.0,0.00021369,4]
[365306804,1749591036546,-347.81,0.00021369,4]
[365306805,1749591036556,-400.0,0.00021369,4]
[365306806,1749591036566,-1325.28,0.00021369,4]
[365306807,1749591036575,-460.0,0.00021369,4]
[365306808,1749591036588,-1240.24,0.00021369,4]
[365306809,1749591036598,-460.0,0.00021369,4]
[365306810,1749591036607,-400.0,0.00021369,4]
[365306811,1749591036617,-479.70322068,0.00021369,4]
[365306812,1749591036628,-460.0,0.00021369,4]
[365306813,1749591036637,-391.72059834,0.00021369,4]
[365306814,1749591036647,-1371.49,0.00021369,4]
[365306815,1749591036657,-460.0,0.00021369,4]
[365306816,1749591036666,-460.0,0.00021369,4]
[365306817,1749591036676,-360.0,0.00021369,4]
[365306818,1749591036686,-420.0,0.00021369,4]
[365306819,1749591036695,-460.0,0.00021369,4]
[365306820,1749591036705,-460.0,0.00021369,4]
[365306821,1749591036715,-1119.68,0.00021369,4]
[365306822,1749591036724,-400.0,0.00021369,4]
[365306823,1749591036734,-518.82,0.00021369,4]
[365306824,1749591036743,-460.0,0.00021369,4]
[365306825,1749591036753,-460.0,0.00021369,4]
[365306826,1749591036762,-460.0,0.00021369,4]
[365306827,1749591036772,-1100.65,0.00021369,4]
[365306828,1749591036782,-570.0,0.00021369,4]
[365306829,1749591036791,-410.0,0.00021369,4]
[365306830,1749591036801,-460.0,0.00021369,4]
[365306831,1749591036811,-1189.8,0.00021369,4]
[365306832,1749591036820,-460.0,0.00021369,4]
[365306833,1749591036830,-1874.17,0.00021369,4]
[365306834,1749591036840,-460.0,0.00021369,4]
[365306835,1749591036850,-350.0,0.00021369,4]
[365306836,1749591036859,-282.03436861,0.00021369,4]
[365306837,1749591036869,-673.18,0.00021369,4]
[365306838,1749591036878,-467.67,0.00021369,4]
[365306839,1749591036887,-613.36,0.00021369,4]
[365306840,1749591036896,-460.0,0.00021369,4]
[365306841,1749591036906,-460.0,0.00021369,4]
[365306842,1749591036915,-460.0,0.00021369,4]
[365306843,1749591036924,-561.22,0.00021369,4]
[365306844,1749591036934,-198.0,0.00021561,4]
[365306845,1749591036943,-151.0,0.00021561,4]
[365306846,1749591036953,-151.0,0.00021561,4]
[365306847,1749591036962,-198.0,0.00021561,4]
[365306848,1749591036971,-151.0,0.00021561,4]
[365306849,1749591036980,-151.0,0.00021561,4]
[365306850,1749591036989,-151.0,0.00021561,4]
[365306851,1749591036999,-151.0,0.00021588,4]
[365306852,1749591037008,-1000.0,0.00021621,2]
[365306853,1749591037018,-161.1426225,0.00021621,2]
[365306854,1749591037027,-500.0,0.00021642,4]
[365306855,1749591037038,-460.0,0.00021643,4]
[365306856,1749591037048,-370.0,0.00021643,4]
[365306857,1749591037057,-370.0,0.00021643,4]
[365306858,1749591037067,-380.0,0.00021643,4]
[365306859,1749591037167,-460.0,0.00021643,4]
[365306860,1749591037179,-460.0,0.00021643,4]
[365306861,1749591037188,-460.0,0.00021643,4]
[365306862,1749591037197,-440.0,0.00021643,4]
[365306863,1749591037206,-460.0,0.00021643,4]
[365306864,1749591037215,-206.46763862,0.00021643,4]
[365306865,1749591037225,-430.0,0.00021643,4]
[365306866,1749591037235,-460.0,0.00021643,4]
[365306867,1749591037244,-440.0,0.00021643,4]
[365306868,1749591037253,-460.0,0.00021643,4]
[365306869,1749591037262,-460.0,0.00021643,4]
[365306870,1749591037271,-410.0,0.00021643,4]
[365306871,1749591037280,-460.0,0.00021643,4]
[365306872,1749591037289,-460.0,0.00021643,4]
[365306873,1749591037298,-460.0,0.00021643,4]
[365306874,1749591037308,-460.0,0.00021643,4]
[365306875,1749591037317,-460.0,0.00021643,4]
[365306876,1749591037327,-334.11694667,0.00021643,4]
[365306877,1749591037337,-460.0,0.00021643,4]
[365306878,1749591037346,-460.0,0.00021643,4]
[365306879,1749591037356,-460.0,0.00021643,4]
[365306880,1749591037366,-460.0,0.00021643,4]
[365306881,1749591037376,-460.0,0.00021643,4]
[365306882,1749591037385,-460.0,0.00021643,4]
[365306883,1749591037395,-460.0,0.00021643,4]
[365306884,1749591037404,-1448.93,0.00021643,4]
[365306885,1749591037414,-460.0,0.00021643,4]
[365306886,1749591037425,-460.0,0.00021643,4]
[365306887,1749591037434,-465.91,0.00021643,4]
[365306888,1749591037444,-380.0,0.00021643,4]
[365306890,1749591037454,-1621.86,0.00021643,4]
[365306891,1749591037463,-460.0,0.00021643,4]
[365306892,1749591037473,-460.0,0.00021643,4]
[365306893,1749591037483,-268.26,0.00021643,4]
[365306894,1749591037492,-460.0,0.00021643,4]
[365306896,1749591037502,-410.0,0.00021643,4]
[365306898,1749591037511,-460.0,0.00021643,2]
[365306899,1749591037520,-460.0,0.00021643,4]
[365306901,1749591037530,-430.0,0.00021643,4]
[365306902,1749591037539,-460.0,0.00021643,4]
[365306904,1749591037549,-460.0,0.00021643,4]
[365306906,1749591037559,-460.0,0.00021643,4]
[365306908,1749591037568,-1325.28,0.00021643,4]
[365306910,1749591037579,-460.0,0.00021643,4]
[365306911,1749591037590,-460.0,0.00021643,4]
[365306912,1749591037600,-1240.24,0.00021643,4]
[365306913,1749591037609,-460.0,0.00021643,4]
[365306915,1749591037619,-1371.49,0.00021643,4]
[365306917,1749591037629,-460.0,0.00021643,4]
[365306919,1749591037638,-460.0,0.00021643,4]
[365306921,1749591037648,-460.0,0.00021643,4]
[365306923,1749591037657,-1119.68,0.00021643,4]
[365306925,1749591037667,-518.82,0.00021643,4]
[365306927,1749591037677,-460.0,0.00021643,4]
[365306929,1749591037686,-390.0,0.00021643,4]
[365306931,1749591037696,-460.0,0.00021643,4]
[365306933,1749591037706,-1100.65,0.00021643,4]
[365306935,1749591037715,-1189.8,0.00021643,4]
[365306937,1749591037725,-230.0,0.00021643,4]
[365306939,1749591037734,-1874.17,0.00021643,4]
[365306941,1749591037744,-460.0,0.00021643,4]
[365306943,1749591037754,-673.18,0.00021643,4]
[365306945,1749591037763,-467.67,0.00021643,4]
[365306947,1749591037772,-613.36,0.00021643,4]
[365306949,1749591037781,-460.0,0.00021643,4]
[365306951,1749591037791,-460.0,0.00021643,4]
[365306953,1749591037800,-460.0,0.00021643,4]
[365306954,1749591037809,-561.22,0.00021643,4]
[365306956,1749591037819,-2581.11954276,0.000219,6]
[365306958,1749591037828,-500.0,0.00021916,4]
[365306960,1749591037837,-160.0,0.00021916,2]
[365306962,1749591037847,-220.0,0.00021917,4]
[365306964,1749591037856,-420.0,0.00021917,4]
[365306966,1749591037866,-460.0,0.00021917,4]
[365306968,1749591037875,-460.0,0.00021917,4]
[365306970,1749591037884,-433.97937949,0.00021917,4]
[365306972,1749591037894,-460.0,0.00021917,4]
[365306974,1749591037903,-293.2349,0.00021917,4]
[365306976,1749591037912,-410.0,0.00021917,4]
[365306978,1749591037921,-460.0,0.00021917,4]
[365306980,1749591037931,-290.0,0.00021917,4]
[365306982,1749591037940,-460.0,0.00021917,4]
[365306984,1749591037949,-410.0,0.00021917,4]
[365306985,1749591037958,-460.0,0.00021917,4]
[365306988,1749591037968,-460.0,0.00021917,4]
[365306990,1749591037977,-460.0,0.00021917,4]
[365306992,1749591037986,-460.0,0.00021917,4]
[365306994,1749591037995,-299.47904283,0.00021917,4]
[365306996,1749591038004,-460.0,0.00021917,4]
[365307000,1749591038013,-460.0,0.00021917,4]
[365307003,1749591038022,-460.0,0.00021917,4]
[365307006,1749591038031,-1448.93,0.00021917,4]
[365307008,1749591038041,-460.0,0.00021917,4]
[365307010,1749591038050,-460.0,0.00021917,4]
[365307012,1749591038060,-465.91,0.00021917,4]
[365307014,1749591038069,-1621.86,0.00021917,4]
[365307015,1749591038078,-460.0,0.00021917,4]
[365307016,1749591038088,-460.0,0.00021917,4]
[365307017,1749591038097,-460.0,0.00021917,4]
[365307018,1749591038106,-460.0,0.00021917,2]
[365307019,1749591038116,-460.0,0.00021917,4]
[365307020,1749591038126,-460.0,0.00021917,4]
[365307021,1749591038139,-460.0,0.00021917,4]
[365307022,1749591038148,-460.0,0.00021917,4]
[365307023,1749591038156,-1325.28,0.00021917,4]
[365307024,1749591038165,-460.0,0.00021917,4]
[365307025,1749591038176,-460.0,0.00021917,4]
[365307026,1749591038185,-1240.24,0.00021917,4]
[365307027,1749591038194,-460.0,0.00021917,4]
[365307028,1749591038204,-1371.49,0.00021917,4]
[365307029,1749591038212,-443.05644999,0.00021917,4]
[365307030,1749591038223,-280.0,0.00021917,4]
[365307031,1749591038232,-357.45,0.00021917,4]
[365307032,1749591038241,-1119.68,0.00021917,4]
[365307033,1749591038250,-518.82,0.00021917,4]
[365307034,1749591038260,-460.0,0.00021917,4]
[365307036,1749591038269,-460.0,0.00021917,4]
[365307038,1749591038278,-1100.65,0.00021917,4]
[365307040,1749591038288,-1189.8,0.00021917,4]
[365307041,1749591038297,-1874.17,0.00021917,4]
[365307042,1749591038307,-460.0,0.00021917,4]
[365307043,1749591038316,-673.18,0.00021917,4]
[365307044,1749591038326,-467.67,0.00021917,4]
[365307045,1749591038335,-613.36,0.00021917,4]
[365307046,1749591038345,-460.0,0.00021917,4]
[365307047,1749591038355,-460.0,0.00021917,4]
[365307048,1749591038364,-460.0,0.00021917,4]
[365307049,1749591038374,-561.22,0.00021917,4]
[365307050,1749591038384,-385.13355047,0.00021918,2]
[365307051,1749591038393,-4465.17038118,0.00022,7]
[365307052,1749591039087,1182.38,0.00019318,2]
[365307053,1749591039148,-2364.77,0.00020238,2]
[365307054,1749591039159,-460.0,0.00021095,4]
[365307055,1749591039170,-460.0,0.00021095,4]
[365307056,1749591039179,-460.0,0.00021095,4]
[365307057,1749591039189,-391.8984415,0.00021095,4]
[365307058,1749591039199,-3547.15,0.00021158,2]
[365307059,1749591039210,-460.0,0.00021369,4]
[365307060,1749591039220,-15777.04643045,0.00021369,2]
[365307061,1749591039230,-482.14,0.00021643,4]
[365307062,1749591039240,-72377.74961882,0.00022,7]
[365307063,1749591039249,-220.0,0.00022,2]
[365307064,1749591039259,-2581.11954262,0.00022003,6]
[365307065,1749591039269,-4729.53,0.00022078,2]
[365307066,1749591039278,-2581.11954262,0.00022107,6]
[365307067,1749591039288,-500.0,0.00022159,2]
[365307068,1749591039297,-510.0,0.00022191,4]
[365307069,1749591039307,-460.0,0.00022191,4]
[365307070,1749591039317,-460.0,0.00022191,4]
[365307071,1749591039326,-460.0,0.00022191,4]
[365307072,1749591039336,-390.0,0.00022191,4]
[365307073,1749591039346,-460.0,0.00022191,4]
[365307074,1749591039355,-310.0,0.00022191,4]
[365307075,1749591039365,-460.0,0.00022191,4]
[365307076,1749591039374,-460.0,0.00022191,4]
[365307077,1749591039383,-460.0,0.00022191,4]
[365307078,1749591039392,-460.0,0.00022191,4]
[365307080,1749591039401,-1448.93,0.00022191,4]
[365307082,1749591039411,-460.0,0.00022191,4]
[365307083,1749591039521,-460.0,0.00022191,4]
[365307084,1749591039531,-465.91,0.00022191,4]
[365307085,1749591039541,-1621.86,0.00022191,4]
[365307086,1749591039551,-460.0,0.00022191,4]
[365307087,1749591039561,-460.0,0.00022191,4]
[365307088,1749591039570,-460.0,0.00022191,4]
[365307089,1749591039581,-460.0,0.00022191,2]
[365307090,1749591039591,-460.0,0.00022191,4]
[365307091,1749591039601,-460.0,0.00022191,4]
[365307092,1749591039611,-607.46,0.00022191,4]
[365307094,1749591039622,-460.0,0.00022191,4]
[365307095,1749591039632,-1325.28,0.00022191,4]
[365307096,1749591039642,-460.0,0.00022191,4]
[365307097,1749591039651,-460.0,0.00022191,4]
[365307098,1749591039661,-1240.24,0.00022191,4]
[365307099,1749591039670,-460.0,0.00022191,4]
[365307100,1749591039679,-1371.49,0.00022191,4]
[365307101,1749591039688,-1119.68,0.00022191,4]
[365307102,1749591039696,-518.82,0.00022191,4]
[365307103,1749591039706,-460.0,0.00022191,4]
[365307104,1749591039717,-460.0,0.00022191,4]
[365307105,1749591039727,-1100.65,0.00022191,4]
[365307106,1749591039738,-1189.8,0.00022191,4]
[365307107,1749591039748,-1874.17,0.00022191,4]
[365307108,1749591039758,-460.0,0.00022191,4]
[365307109,1749591039768,-673.18,0.00022191,4]
[365307110,1749591039779,-467.67,0.00022191,4]
[365307111,1749591039788,-613.36,0.00022191,4]
[365307112,1749591039799,-398.28,0.00022191,4]
[365307113,1749591039809,-460.0,0.00022191,4]
[365307114,1749591039818,-460.0,0.00022191,4]
[365307115,1749591039828,-561.22,0.00022191,4]
[365307116,1749591039837,-158.20654638,0.000222,69]
[365307117,1749591039847,-158.20654637,0.000222,69]
[365307118,1749591039856,-2581.11954262,0.0002221,6]
[365307119,1749591039866,-2581.11954262,0.00022314,7]
[365307120,1749591039875,-2581.11954262,0.00022417,7]
[365307121,1749591039884,-460.0,0.00022465,4]
[365307122,1749591039894,-390.0,0.00022465,4]
[365307123,1749591039904,-460.0,0.00022465,4]
[365307124,1749591039914,-395.29836005,0.00022465,4]
[365307125,1749591039923,-460.0,0.00022465,4]
[365307126,1749591039933,-460.0,0.00022465,4]
[365307127,1749591039942,-460.0,0.00022465,4]
[365307128,1749591039952,-460.0,0.00022465,4]
[365307129,1749591039963,-1448.93,0.00022465,4]
[365307130,1749591039973,-460.0,0.00022465,4]
[365307131,1749591039983,-460.0,0.00022465,4]
[365307132,1749591039994,-465.91,0.00022465,4]
[365307133,1749591040004,-1621.86,0.00022465,4]
[365307134,1749591040014,-463.32,0.00022465,4]
[365307135,1749591040023,-460.0,0.00022465,4]
[365307136,1749591040033,-460.0,0.00022465,4]
[365307137,1749591040043,-460.0,0.00022465,2]
[365307138,1749591040052,-460.0,0.00022465,4]
[365307139,1749591040062,-460.0,0.00022465,4]
[365307140,1749591040072,-460.0,0.00022465,4]
[365307141,1749591040081,-1325.28,0.00022465,4]
[365307142,1749591040092,-460.0,0.00022465,4]
[365307143,1749591040102,-460.0,0.00022465,4]
[365307144,1749591040112,-1240.24,0.00022465,4]
[365307145,1749591040123,-460.0,0.00022465,4]
[365307146,1749591040135,-1371.49,0.00022465,4]
[365307147,1749591040145,-1119.68,0.00022465,4]
[365307148,1749591040155,-518.82,0.00022465,4]
[365307149,1749591040165,-460.0,0.00022465,4]
[365307150,1749591040174,-460.0,0.00022465,4]
[365307151,1749591040185,-1100.65,0.00022465,4]
[365307153,1749591040195,-1189.8,0.00022465,4]
[365307154,1749591040206,-1874.17,0.00022465,4]
[365307155,1749591040216,-460.0,0.00022465,4]
[365307156,1749591040225,-673.18,0.00022465,4]
[365307157,1749591040235,-467.67,0.00022465,4]
[365307158,1749591040245,-613.36,0.00022465,4]
[365307159,1749591040254,-399.57,0.00022465,4]
[365307160,1749591040264,-460.0,0.00022465,4]
[365307161,1749591040274,-561.22,0.00022465,4]
[365307162,1749591040283,-2581.11954262,0.00022521,7]
[365307163,1749591040292,-2581.11954262,0.00022624,7]
[365307164,1749591040303,-796.41,0.000227,7]
[365307165,1749591040312,-213.1263252,0.00022712,2]
[365307166,1749591040322,-160.0,0.00022712,2]
[365307167,1749591040332,-160.0,0.00022712,2]
[365307168,1749591040342,-842.5625,0.00022712,2]
[365307169,1749591040352,-160.0,0.00022712,2]
[365307170,1749591040362,-424.12530924,0.00022712,2]
[365307171,1749591040371,-160.0,0.00022712,2]
[365307172,1749591040380,-229.6792923,0.00022712,2]
[365307173,1749591040389,-160.0,0.00022719,2]
[365307174,1749591040399,-160.0,0.00022719,2]
[365307175,1749591040409,-2581.11954262,0.00022728,7]
[365307176,1749591040418,-834.9046531,0.00022731,2]
[365307177,1749591040427,-330.0,0.00022739,4]
[365307178,1749591040437,-460.0,0.00022739,4]
[365307179,1749591040447,-340.0,0.00022739,4]
[365307180,1749591040456,-460.0,0.00022739,4]
[365307181,1749591040466,-460.0,0.00022739,4]
[365307182,1749591040475,-460.0,0.00022739,4]
[365307183,1749591040485,-1448.93,0.00022739,4]
[365307184,1749591040495,-460.0,0.00022739,4]
[365307185,1749591040504,-460.0,0.00022739,4]
[365307186,1749591040515,-465.91,0.00022739,4]
[365307187,1749591040525,-1621.86,0.00022739,4]
[365307188,1749591040535,-460.0,0.00022739,4]
[365307189,1749591040544,-460.0,0.00022739,4]
[365307190,1749591040554,-460.0,0.00022739,2]
[365307191,1749591040564,-460.0,0.00022739,4]
[365307192,1749591040573,-460.0,0.00022739,4]
[365307193,1749591040582,-460.0,0.00022739,4]
[365307194,1749591040593,-1325.28,0.00022739,4]
[365307195,1749591040602,-460.0,0.00022739,4]
[365307196,1749591040612,-460.0,0.00022739,4]
[365307197,1749591040622,-1240.24,0.00022739,4]
[365307198,1749591040631,-460.0,0.00022739,4]
[365307199,1749591040640,-1371.49,0.00022739,4]
[365307200,1749591040650,-1119.68,0.00022739,4]
[365307201,1749591040659,-518.82,0.00022739,4]
[365307202,1749591040669,-460.0,0.00022739,4]
[365307203,1749591040678,-292.52361612,0.00022739,4]
[365307204,1749591040688,-1100.65,0.00022739,4]
[365307205,1749591040698,-1189.8,0.00022739,4]
[365307206,1749591040708,-1874.17,0.00022739,4]
[365307207,1749591040717,-360.0,0.00022739,4]
[365307208,1749591040727,-673.18,0.00022739,4]
[365307209,1749591040737,-467.67,0.00022739,4]
[365307210,1749591040746,-613.36,0.00022739,4]
[365307211,1749591040756,-460.0,0.00022739,4]
[365307212,1749591040766,-561.22,0.00022739,4]
[365307213,1749591040775,-41047.5,0.000228,2]
[365307214,1749591040784,-270.96565288,0.00022802,2]
[365307215,1749591040793,-500.0,0.00022818,2]
[365307216,1749591040803,-500.0,0.00022818,2]
[365307217,1749591040812,-600.0,0.00022818,2]
[365307218,1749591040821,-500.0,0.00022818,2]
[365307219,1749591040830,-2581.11954262,0.00022831,8]
[365307220,1749591040839,-420.0,0.0002292,2]
[365307221,1749591040848,-2581.11954262,0.00022934,8]
[365307222,1749591040858,-420.0,0.00022942,2]
[365307223,1749591040867,-460.0,0.00023013,4]
[365307224,1749591040877,-460.0,0.00023013,4]
[365307225,1749591040886,-460.0,0.00023013,4]
[365307226,1749591040895,-220.0,0.00023013,4]
[365307227,1749591040904,-1448.93,0.00023013,4]
[365307228,1749591040914,-240.0,0.00023013,4]
[365307229,1749591040922,-460.0,0.00023013,4]
[365307230,1749591040931,-465.91,0.00023013,4]
[365307231,1749591040940,-1621.86,0.00023013,4]
[365307232,1749591040949,-460.0,0.00023013,4]
[365307233,1749591040959,-460.0,0.00023013,4]
[365307234,1749591040969,-460.0,0.00023013,2]
[365307235,1749591040978,-460.0,0.00023013,4]
[365307236,1749591040987,-460.0,0.00023013,4]
[365307237,1749591040996,-460.0,0.00023013,4]
[365307238,1749591041006,-1325.28,0.00023013,4]
[365307239,1749591041015,-460.0,0.00023013,4]
[365307240,1749591041024,-407.44561737,0.00023013,4]
[365307241,1749591041033,-1240.24,0.00023013,4]
[365307242,1749591041042,-460.0,0.00023013,4]
[365307243,1749591041052,-1371.49,0.00023013,4]
[365307244,1749591041062,-1119.68,0.00023013,4]
[365307245,1749591041072,-518.82,0.00023013,4]
[365307246,1749591041082,-460.0,0.00023013,4]
[365307247,1749591041092,-1100.65,0.00023013,4]
[365307248,1749591041102,-1189.8,0.00023013,4]
[365307249,1749591041112,-1874.17,0.00023013,4]
[365307250,1749591041124,-673.18,0.00023013,4]
[365307251,1749591041135,-467.67,0.00023013,4]
[365307252,1749591041144,-613.36,0.00023013,4]
[365307253,1749591041154,-460.0,0.00023013,4]
[365307254,1749591041164,-561.22,0.00023013,4]
[365307255,1749591041174,-220.0,0.00023014,7]
[365307256,1749591041183,-1680.0,0.00023028,2]
[365307257,1749591041193,-2581.11954262,0.00023038,8]
[365307258,1749591041203,-1142.95,0.000231,7]
[365307259,1749591041212,-2581.11954262,0.00023141,8]
[365307260,1749591041222,-500.0,0.00023173,2]
[365307261,1749591041231,-500.0,0.00023173,2]
[365307262,1749591041240,-500.0,0.00023173,2]
[365307263,1749591041250,-500.0,0.00023173,2]
[365307264,1749591041260,-76842.92,0.000232,7]
[365307265,1749591041269,-287.0,0.0002324,2]
[365307266,1749591041279,-2581.11954262,0.00023245,8]
[365307267,1749591041288,-500.0,0.00023255,2]
[365307268,1749591041297,-158.20654637,0.00023271,73]
[365307269,1749591041307,-160.0,0.00023286,2]
[365307270,1749591041316,-325.65,0.00023287,4]
[365307271,1749591041326,-460.0,0.00023287,4]
[365307272,1749591041335,-460.0,0.00023287,4]
[365307273,1749591041347,-1448.93,0.00023287,4]
[365307274,1749591041356,-460.0,0.00023287,4]
[365307275,1749591041366,-465.91,0.00023287,4]
[365307276,1749591041376,-1621.86,0.00023287,4]
[365307277,1749591041386,-460.0,0.00023287,4]
[365307278,1749591041395,-460.0,0.00023287,4]
[365307279,1749591041405,-460.0,0.00023287,2]
[365307280,1749591041415,-460.0,0.00023287,4]
[365307281,1749591041424,-460.0,0.00023287,4]
[365307282,1749591041434,-460.0,0.00023287,4]
[365307283,1749591041443,-1325.28,0.00023287,4]
[365307284,1749591041453,-460.0,0.00023287,4]
[365307285,1749591041464,-1240.24,0.00023287,4]
[365307286,1749591041473,-460.0,0.00023287,4]
[365307287,1749591041483,-1371.49,0.00023287,4]
[365307288,1749591041492,-1119.68,0.00023287,4]
[365307289,1749591041502,-518.82,0.00023287,4]
[365307290,1749591041512,-320.0,0.00023287,4]
[365307291,1749591041521,-1100.65,0.00023287,4]
[365307292,1749591041531,-1189.8,0.00023287,4]
[365307293,1749591041540,-1874.17,0.00023287,4]
[365307294,1749591041550,-673.18,0.00023287,4]
[365307295,1749591041560,-467.67,0.00023287,4]
[365307296,1749591041570,-613.36,0.00023287,4]
[365307297,1749591041580,-460.0,0.00023287,4]
[365307298,1749591041590,-561.22,0.00023287,4]
[365307299,1749591041599,-2581.11954262,0.00023348,9]
[365307300,1749591041608,-1000.0,0.00023366,2]
[365307301,1749591041618,-500.0,0.00023366,2]
[365307302,1749591041627,-5000.0,0.00023403,2]
[365307303,1749591041638,-207.4,0.00023403,2]
[365307304,1749591041647,-287.0,0.00023451,2]
[365307305,1749591041656,-2581.11954262,0.00023452,9]
[365307306,1749591041666,-500.0,0.00023473,2]
[365307307,1749591041676,-500.0,0.00023473,2]
[365307308,1749591041686,-500.0,0.00023473,2]
[365307309,1749591041695,-1020.0,0.000235,3]
[365307310,1749591041705,-1020.0,0.000235,3]
[365307311,1749591041715,-1020.0,0.000235,3]
[365307312,1749591041724,-1020.0,0.000235,3]
[365307313,1749591041734,-1020.0,0.000235,3]
[365307314,1749591041743,-1020.0,0.000235,3]
[365307315,1749591041753,-1020.0,0.000235,3]
[365307316,1749591041850,-1020.0,0.000235,3]
[365307317,1749591041860,-1020.0,0.000235,3]
[365307318,1749591041874,-1020.0,0.000235,3]
[365307319,1749591041884,-229.6792923,0.000235,3]
[365307320,1749591041894,-842.5625,0.000235,3]
[365307321,1749591041904,-424.12530924,0.000235,3]
[365307322,1749591041914,-160.0,0.000235,3]
[365307323,1749591041923,-2581.11954262,0.00023555,9]
[365307324,1749591041932,-460.0,0.00023561,4]
[365307325,1749591041942,-460.0,0.00023561,4]
[365307326,1749591041952,-1448.93,0.00023561,4]
[365307327,1749591041961,-460.0,0.00023561,4]
[365307328,1749591041971,-465.91,0.00023561,4]
[365307329,1749591041980,-1621.86,0.00023561,4]
[365307330,1749591041990,-460.0,0.00023561,4]
[365307331,1749591042003,-460.0,0.00023561,4]
[365307332,1749591042012,-460.0,0.00023561,2]
[365307333,1749591042021,-479.69490726,0.00023561,4]